fUST/lending_fUST_20260412
["ID","MTS","AMOUNT","RATE_DAILY","PERIOD"]
[420303745,1775946648371,-61.90725147,0.000188,2]
[420303746,1775946648389,-228.798792,0.000188,2]
[420303747,1775946648422,-228.798792,0.000188,2]
[420303748,1775946648432,-228.798792,0.000188,2]
[420303749,1775946648454,-151.0,0.000188,2]
[420303750,1775946648468,-151.0,0.000188,2]
[420303751,1775946648483,-5000.0,0.000188,2]
[420303752,1775946648521,-3522.128707,0.000188,2]
[420303753,1775946648551,-113415.18049156,0.000188,2]
[420303754,1775946648561,-139717.21873713,0.000189,2]
[420303755,1775946648584,-151.0,0.000189,2]
[420303756,1775946648597,-228.798792,0.000189,2]
[420303757,1775946648607,-228.798792,0.000189,2]
[420303758,1775946648642,-228.798792,0.000189,2]
[420303759,1775946648651,-228.798792,0.000189,2]
[420303760,1775946648666,-151.0,0.000189,2]
[420303761,1775946648687,-151.0,0.000189,2]
[420303762,1775946648696,-31745.50143784,0.000189,2]
[420303763,1775946648705,-1557.0,0.00018904,2]
[420303764,1775946648741,-200.0,0.00018959,5]
[420303765,1775946648751,-200.0,0.00018959,5]
[420303766,1775946648765,-200.0,0.00018959,5]
[420303767,1775946648790,-49805.29006287,0.00019,2]
[420303772,1775947202550,165.99,2e-05,2]
[420303775,1775947756310,-165.99,5e-05,2]
[420303776,1775947756351,-227.83850114,6.25e-05,2]
[420303777,1775947756381,-194.17149886,8.25e-05,2]
[420303854,1775947832816,-534.0,8.15e-05,2]
[420303855,1775947832830,-133.68346952,8.15e-05,2]
[420303963,1775947838324,-142.06853048,8.15e-05,2]
[420303964,1775947838343,-74.67793249,8.25e-05,2]
[420303965,1775947838357,-356.83139869,0.0001,2]
[420303966,1775947838378,-309.86036155,0.0001025,2]
[420303967,1775947838399,-350.87129176,0.0001225,2]
[420303968,1775947838418,-156.0,0.00013699,2]
[420303969,1775947838432,-1000.0,0.00013699,2]
[420303970,1775947838458,-391.88222196,0.0001425,2]
[420303971,1775947838471,-1000.0,0.00014598,2]
[420303972,1775947838484,-175.976164,0.00015068,2]
[420303973,1775947838526,-81688.76453868,0.00015623,2]
[420303974,1775947838547,-3026.59533107,0.00015623,2]
[420303975,1775947838621,-507.38707281,0.00015623,2]
[420303976,1775947838657,-152161.1821672,0.00015623,2]
[420303977,1775947838677,-709.08056756,0.00015623,2]
[420304016,1775947843507,-280.22244086,0.000155,2]
[420304017,1775947843518,-530.34618756,0.000155,2]
[420304018,1775947843533,-544.4837514,0.000155,2]
[420304019,1775947843549,-488.21767131,0.000155,2]
[420304020,1775947843561,-3754.53553874,0.00015623,2]
[420304021,1775947843583,-2060.3243339,0.00015623,2]
[420304022,1775947843616,-27644.23903748,0.00015623,2]
[420304023,1775947843628,-15831.19955516,0.00015623,2]
[420304024,1775947843658,-1074.91166387,0.00015623,2]
[420304025,1775947843675,-1580.71166212,0.00015623,2]
[420304026,1775947843697,-3845.15198489,0.00015623,2]
[420304033,1775947846208,-12424.53090494,0.00015623,2]
[420304034,1775947846371,-126386.30712,0.00015623,2]
[420311453,1775949033723,-180.71298646,0.0001355,2]
[420311455,1775949033735,-1000.0,0.00013699,2]
[420311457,1775949033745,-166.66666668,0.00013801,2]
[420311459,1775949033755,-166.66666666,0.00014611,2]
[420311461,1775949033772,-1909.998488,0.00015,2]
[420311463,1775949033782,-1431.0506836,0.00015205,2]
[420311465,1775949033791,-160.0,0.00015406,2]
[420311467,1775949033801,-2395.80850262,0.00015416,2]
[420311469,1775949033821,-840.0,0.00015417,2]
[420311471,1775949033831,-300.0,0.00015419,2]
[420311474,1775949033841,-295.85542312,0.00015419,2]
[420311476,1775949033859,-4.14457688,0.00015419,2]
[420311478,1775949033871,-166.66666666,0.0001542,2]
[420311480,1775949033881,-329.18875646,0.0001542,2]
[420311482,1775949033893,-104.28317591,0.0001542,2]
[420311484,1775949033905,-320.81045015,0.0001542,2]
[420311487,1775949033921,-324.47130679,0.0001542,2]
[420311489,1775949033935,-1886.81069975,0.0001542,2]
[420311491,1775949033945,-500.0,0.00015518,2]
[420311493,1775949033969,-500.0,0.00015518,2]
[420311495,1775949033979,-500.0,0.00015519,2]
[420311497,1775949033996,-500.0,0.00015519,2]
[420311499,1775949034015,-500.0,0.0001552,2]
[420311501,1775949034026,-255.739,0.0001552,2]
[420311504,1775949034058,-500.0,0.0001552,2]
[420311505,1775949034068,-500.0,0.0001552,2]
[420311508,1775949034097,-500.0,0.0001552,2]
[420311510,1775949034110,-500.0,0.0001552,2]
[420311511,1775949034126,-500.0,0.0001552,2]
[420311514,1775949034154,-585.67523992,0.00015617,2]
[420311516,1775949034189,-965.22810725,0.00015617,2]
[420311518,1775949034198,-502.83598002,0.00015673,2]
[420311520,1775949034211,-160.0,0.0001571,2]
[420311522,1775949034234,-170.838483,0.00015711,2]
[420311523,1775949034252,-500.0,0.00015888,2]
[420311526,1775949034272,-500.0,0.00015888,2]
[420311527,1775949034289,-536.84292717,0.00015888,2]
[420311530,1775949034307,-500.0,0.00015888,2]
[420311531,1775949034329,-500.0,0.00015888,2]
[420311533,1775949034339,-500.0,0.00015888,2]
[420311536,1775949034361,-500.0,0.00015888,2]
[420311538,1775949034377,-500.0,0.00015888,2]
[420311540,1775949034391,-500.0,0.00015888,2]
[420311542,1775949034408,-500.0,0.00015888,2]
[420311544,1775949034421,-276.83404944,0.00015888,2]
[420311582,1775949038650,-196.85246499,0.00013624,2]
[420311583,1775949038668,-232.28590868,0.00015624,2]
[420311584,1775949038687,-71.76581286,0.00015888,2]
[420311585,1775949038703,-349.55135184,0.00015888,2]
[420311586,1775949038722,-500.0,0.00015888,2]
[420311587,1775949038737,-500.0,0.00015888,2]
[420311588,1775949038776,-500.0,0.00015888,2]
[420311591,1775949038794,-500.0,0.00015888,2]
[420311592,1775949038829,-500.0,0.00015888,2]
[420311594,1775949038839,-500.0,0.00015888,2]
[420311597,1775949038866,-500.0,0.0001589,2]
[420311598,1775949038881,-500.0,0.0001589,2]
[420311599,1775949038904,-500.0,0.0001589,2]
[420311600,1775949038914,-500.0,0.0001589,2]
[420311601,1775949038926,-500.0,0.0001589,2]
[420311602,1775949038939,-500.0,0.0001589,2]
[420311603,1775949038952,-500.0,0.0001589,2]
[420311604,1775949038964,-500.0,0.0001589,2]
[420311605,1775949038975,-108.61628577,0.0001589,2]
[420311614,1775949041288,-391.38371423,0.0001589,2]
[420311615,1775949041298,-500.0,0.0001589,2]
[420311616,1775949041320,-500.0,0.0001589,2]
[420311617,1775949041329,-500.0,0.0001589,2]
[420311618,1775949041338,-500.0,0.0001589,2]
[420311619,1775949041354,-500.0,0.0001589,2]
[420311620,1775949041373,-500.0,0.0001589,2]
[420311621,1775949041383,-500.0,0.0001589,2]
[420311622,1775949041392,-150.833289,0.0001589,2]
[420311623,1775949041417,-151.5,0.00015925,14]
[420311624,1775949041427,-298.5,0.00015925,14]
[420311625,1775949041440,-165.38473629,0.00016304,2]
[420311626,1775949041464,-170.838483,0.00016373,2]
[420311627,1775949041477,-1557.0,0.00016438,2]
[420311628,1775949041502,-2532.09245667,0.0001651,2]
[420311629,1775949041514,-466.0,0.00016566,2]
[420311630,1775949041528,-554.0,0.00016566,2]
[420311631,1775949041553,-2133.98882082,0.00016768,2]
[420311632,1775949041576,-261.81968173,0.00016768,2]
[420311633,1775949041592,-151.0,0.00016849,2]
[420311634,1775949041604,-537.6845,0.00016849,2]
[420311635,1775949041628,-162.380719,0.00016849,2]
[420311636,1775949041645,-1957.856,0.00016849,2]
[420311637,1775949041667,-537.6845,0.00016849,2]
[420311638,1775949041679,-156.587,0.00016849,2]
[420311639,1775949041696,-1719.0955306,0.00016849,2]
[420311640,1775949041717,-431.6424694,0.00016849,2]
[420311641,1775949041730,-267.52218232,0.00016868,2]
[420311659,1775949043544,-152.47781768,0.00016868,2]
[420311660,1775949043556,-151.0,0.00016872,2]
[420311661,1775949043572,-508.0,0.00016896,2]
[420311662,1775949043584,-349.0,0.00016896,2]
[420311663,1775949043595,-557.5788265,0.00016904,2]
[420311664,1775949043609,-2030.296672,0.00016904,2]
[420311665,1775949043621,-578.20924308,0.00016959,2]
[420311666,1775949043632,-2105.41764886,0.00016959,2]
[420311667,1775949043644,-1557.0,0.00016986,2]
[420311668,1775949043659,-599.60298507,0.00017014,2]
[420311669,1775949043671,-1163.26433474,0.00017014,2]
[420311670,1775949043682,-11852.2267789,0.00017032,2]
[420311671,1775949043700,-2538.3443708,0.00017032,2]
[420311672,1775949043712,-170.838483,0.00017034,2]
[420311673,1775949043725,-621.78829552,0.00017069,2]
[420311674,1775949043738,-644.79446246,0.00017124,2]
[420311675,1775949043747,-644.0,0.00017149,2]
[420311676,1775949043757,-1595.33161312,0.00017149,2]
[420311678,1775949043814,-16.02682318,0.00017149,2]
[420311712,1775950173230,-193.36804901,0.0001,2]
[420311746,1775950233907,-235.44100035,0.0001,2]
[420311747,1775950233917,-69.64982928,0.00010677,2]
[420311748,1775950233943,-118.61986823,0.00010677,2]
[420311749,1775950233954,-222.15824307,0.00012677,2]
[420311750,1775950233968,-1000.0,0.00013699,2]
[420311751,1775950233988,-256.04678862,0.00014677,2]
[420311752,1775950234000,-1000.0,0.00014722,2]
[420311753,1775950234029,-160.0,0.0001575,2]
[420311754,1775950234040,-425.33137535,0.00016151,2]
[420311755,1775950234057,-1829.58383719,0.00016198,2]
[420311756,1775950234074,-174.25988754,0.00016215,2]
[420311757,1775950234110,-150.93632396,0.00016215,2]
[420311758,1775950234129,-270.69099778,0.00016284,2]
[420311759,1775950234139,-204.591,0.00016284,2]
[420311760,1775950234164,-317.88011717,0.00016284,2]
[420311761,1775950234177,-182.11988283,0.00016284,2]
[420311762,1775950234191,-254.606788,0.00016284,2]
[420311782,1775950238883,-160.0,0.00015486,2]
[420311783,1775950238894,-45.393212,0.00016284,2]
[420311784,1775950238905,-482.50646462,0.00016285,2]
[420311786,1775950239265,-514.71027283,0.00016285,2]
[420311833,1775950241578,-812.04690215,0.00016285,2]
[420311997,1775950243929,-407.64,0.00016285,2]
[420312006,1775950244046,-7413.40004165,0.00016285,2]
[420312221,1775950249256,-1558.15774345,0.00016285,2]
[420312833,1775950802511,178.54,2e-05,2]
[420312847,1775951431727,-300.0,0.00011462,12]
[420312849,1775951431740,-182.10201725,0.00011932,2]
[420312851,1775951431762,-517.89798275,0.00013699,2]
[420312855,1775951431791,-482.10201725,0.00013699,2]
[420312856,1775951431806,-214.88038036,0.00013932,2]
[420312859,1775951431821,-1944.3312158,0.00015257,2]
[420312861,1775951431833,-175.976164,0.00015794,2]
[420312863,1775951431857,-160.0,0.00015896,2]
[420312865,1775951431872,-247.65874346,0.00015932,2]
[420312867,1775951431894,-160.0,0.00016095,2]
[420312869,1775951431910,-170.838483,0.00016298,2]
[420312871,1775951431924,-444.21299613,0.00016538,2]
[420313117,1775951438035,-55.78700387,0.00016538,2]
[420313118,1775951438050,-204.0,0.00016538,2]
[420313119,1775951438072,-1286.21299613,0.00016539,2]
[420313147,1775951443066,-271.94474747,0.00016539,2]
[420313148,1775951443084,-1509.05525253,0.00016539,2]
[420313159,1775951446039,-3392.34186895,0.00016539,2]
[420313172,1775952555183,-7062.29212004,7.6e-05,2]
[420313173,1775952555208,-2.90794545,8.8e-05,2]
[420313179,1775952632438,-169.15103552,9.4e-05,2]
[420313180,1775952632473,-188.45977748,0.0001,2]
[420313181,1775952632495,-199.59822192,0.000114,2]
[420313182,1775952632507,-143.29096008,0.000134,2]
[420313183,1775952632523,-86.75444823,0.000134,2]
[420313184,1775952632541,-160.0,0.00013681,2]
[420313185,1775952632553,-1000.0,0.00013699,2]
[420313186,1775952632566,-1000.0,0.00014037,2]
[420313187,1775952632590,-300.0,0.00014316,2]
[420313188,1775952632601,-776.0,0.00014316,2]
[420313189,1775952632613,-300.0,0.00014317,2]
[420313190,1775952632633,-300.0,0.00014317,2]
[420313191,1775952632652,-300.0,0.00014317,2]
[420313192,1775952632661,-300.0,0.00014317,2]
[420313193,1775952632671,-300.0,0.00014317,2]
[420313194,1775952632681,-300.0,0.00014317,2]
[420313195,1775952632697,-300.0,0.00014317,2]
[420313196,1775952632707,-300.0,0.00014317,2]
[420313197,1775952632716,-300.0,0.00014317,2]
[420313198,1775952632730,-300.0,0.00014317,2]
[420313214,1775952633021,-38.95421257,0.00014317,2]
[420313218,1775952633070,-261.04578743,0.00014317,2]
[420313220,1775952633081,-300.0,0.00014317,2]
[420313222,1775952633090,-300.0,0.00014317,2]
[420313224,1775952633107,-300.0,0.00014317,2]
[420313226,1775952633117,-300.0,0.00014317,2]
[420313228,1775952633126,-600.0,0.00014602,2]
[420313229,1775952633140,-160.0,0.00015,2]
[420313232,1775952633150,-510.0,0.00015,2]
[420313234,1775952633160,-400.0,0.00015,2]
[420313236,1775952633171,-260.49259471,0.000154,2]
[420313238,1775952633181,-445.7869234,0.00015572,2]
[420313240,1775952633196,-2046.81711303,0.00015572,2]
[420313242,1775952633206,-485.67019432,0.00015572,2]
[420313278,1775952638394,-1033.58527969,0.00015572,2]
[420313279,1775952638413,-446.0,0.00015572,2]
[420313280,1775952638435,-300.0,0.00015572,2]
[420313281,1775952638445,-1519.255474,0.00015572,2]
[420313282,1775952638455,-1250.07816501,0.00015573,2]
[420313283,1775952638473,-269.17730899,0.00015573,2]
[420313284,1775952638484,-1240.40924221,0.00015573,2]
[420313285,1775952638496,-278.84623179,0.00015573,2]
[420313286,1775952638521,-1519.255474,0.00015573,2]
[420313287,1775952638532,-1616.53088722,0.00015623,2]
[420313288,1775952638542,-534.83,0.00015663,3]
[420313289,1775952638563,-267.41,0.00015663,3]
[420313290,1775952638573,-783.12740699,0.00015663,3]
[420313291,1775952638605,-19.15259301,0.00015663,3]
[420313292,1775952638617,-500.0,0.00015672,2]
[420313294,1775952638627,-500.0,0.00015672,2]
[420313296,1775952638661,-200.84663778,0.00015672,2]
[420313297,1775952638671,-500.0,0.00015672,2]
[420313298,1775952638698,-500.0,0.00015672,2]
[420313299,1775952638708,-175.88811252,0.00015672,2]
[420313300,1775952638720,-159.8340903,0.00015672,2]
[420313301,1775952638751,-247.10064001,0.00015672,2]
[420313302,1775952638766,-252.89935999,0.00015672,2]
[420313303,1775952638792,-500.0,0.00015672,2]
[420313304,1775952638803,-500.0,0.00015672,2]
[420313305,1775952638831,-521.30574985,0.00015672,2]
[420313306,1775952638845,-500.0,0.00015672,2]
[420313307,1775952638878,-500.0,0.00015672,2]
[420313308,1775952638888,-500.0,0.00015672,2]
[420313309,1775952638905,-500.0,0.00015672,2]
[420313310,1775952638917,-500.0,0.00015672,2]
[420313311,1775952638929,-500.0,0.00015672,2]
[420313312,1775952638939,-500.0,0.00015672,2]
[420313313,1775952638974,-500.0,0.00015672,2]
[420313314,1775952638983,-500.0,0.00015672,2]
[420313315,1775952639000,-500.0,0.00015672,2]
[420313316,1775952639013,-500.0,0.00015672,2]
[420313317,1775952639032,-500.0,0.00015672,2]
[420313318,1775952639045,-500.0,0.00015672,2]
[420313319,1775952639062,-500.0,0.00015672,2]
[420313320,1775952639072,-500.0,0.00015672,2]
[420313321,1775952639082,-500.0,0.00015672,2]
[420313322,1775952639100,-500.0,0.00015672,2]
[420313323,1775952639110,-500.0,0.00015672,2]
[420313324,1775952639126,-500.0,0.00015672,2]
[420313325,1775952639139,-500.0,0.00015672,2]
[420313326,1775952639149,-500.0,0.00015672,2]
[420313327,1775952639172,-500.0,0.00015672,2]
[420313328,1775952639181,-500.0,0.00015672,2]
[420313329,1775952639190,-500.0,0.00015672,2]
[420313330,1775952639213,-500.0,0.00015672,2]
[420313331,1775952639223,-500.0,0.00015672,2]
[420313332,1775952639233,-500.0,0.00015672,2]
[420313333,1775952639254,-500.0,0.00015672,2]
[420313334,1775952639264,-500.0,0.00015672,2]
[420313335,1775952639274,-500.0,0.00015672,2]
[420313336,1775952639289,-500.0,0.00015672,2]
[420313337,1775952639299,-500.0,0.00015672,2]
[420313338,1775952639309,-500.0,0.00015672,2]
[420313339,1775952639322,-500.0,0.00015672,2]
[420313340,1775952639335,-500.0,0.00015672,2]
[420313341,1775952639345,-500.0,0.00015672,2]
[420313342,1775952639357,-500.0,0.00015672,2]
[420313343,1775952639388,-500.0,0.00015672,2]
[420313344,1775952639400,-500.0,0.00015672,2]
[420313345,1775952639410,-500.0,0.00015672,2]
[420313346,1775952639444,-500.0,0.00015672,2]
[420313347,1775952639457,-500.0,0.00015672,2]
[420313348,1775952639490,-427.33216128,0.00015672,2]
[420313349,1775952639530,-500.0,0.00015672,2]
[420313350,1775952639539,-500.0,0.00015672,2]
[420313351,1775952639560,-287.46035433,0.00015672,2]
[420313352,1775952639577,-500.0,0.00015672,2]
[420313353,1775952639588,-500.0,0.00015672,2]
[420313354,1775952639598,-500.0,0.00015672,2]
[420313355,1775952639615,-500.0,0.00015672,2]
[420313356,1775952639624,-500.0,0.00015672,2]
[420313357,1775952639640,-500.0,0.00015672,2]
[420313358,1775952639650,-500.0,0.00015672,2]
[420313359,1775952639660,-500.0,0.00015672,2]
[420313360,1775952639672,-500.0,0.00015672,2]
[420313361,1775952639683,-500.0,0.00015672,2]
[420313362,1775952639698,-500.0,0.00015672,2]
[420313363,1775952639708,-500.0,0.00015672,2]
[420313364,1775952639719,-500.0,0.00015672,2]
[420313365,1775952639730,-500.0,0.00015672,2]
[420313366,1775952639743,-500.0,0.00015672,2]
[420313367,1775952639753,-500.0,0.00015672,2]
[420313368,1775952639768,-500.0,0.00015672,2]
[420313369,1775952639781,-500.0,0.00015672,2]
[420313370,1775952639808,-500.0,0.00015672,2]
[420313371,1775952639817,-500.0,0.00015672,2]
[420313372,1775952639830,-500.0,0.00015672,2]
[420313374,1775952639848,-500.0,0.00015672,2]
[420313375,1775952639859,-500.0,0.00015672,2]
[420313376,1775952639872,-350.0,0.00015672,2]
[420313377,1775952639892,-500.0,0.00015672,2]
[420313378,1775952639901,-650.0,0.00015672,2]
[420313379,1775952639911,-500.0,0.00015672,2]
[420313380,1775952639928,-500.0,0.00015672,2]
[420313381,1775952639938,-500.0,0.00015672,2]
[420313382,1775952639948,-500.0,0.00015672,2]
[420313383,1775952639960,-500.0,0.00015672,2]
[420313384,1775952639974,-500.0,0.00015672,2]
[420313385,1775952639983,-500.0,0.00015673,2]
[420313386,1775952639992,-500.0,0.00015673,2]
[420313387,1775952640010,-501.9694241,0.00015673,2]
[420313388,1775952640021,-501.92032359,0.00015673,2]
[420313389,1775952640030,-500.0,0.00015673,2]
[420313390,1775952640041,-500.0,0.00015673,2]
[420313391,1775952640073,-503.63568216,0.00015673,2]
[420313393,1775952640088,-500.0,0.00015673,2]
[420313395,1775952640098,-500.0,0.00015673,2]
[420313397,1775952640114,-500.0,0.00015673,2]
[420313399,1775952640126,-500.0,0.00015673,2]
[420313401,1775952640139,-500.0,0.00015673,2]
[420313403,1775952640157,-502.01550327,0.00015673,2]
[420313405,1775952640169,-500.0,0.00015673,2]
[420313406,1775952640182,-187.56438148,0.00015673,2]
[420313408,1775952640208,-503.26779648,0.00015673,2]
[420313410,1775952640217,-571.15576324,0.00015673,2]
[420313412,1775952640236,-500.0,0.00015673,2]
[420313415,1775952640245,-610115.98304323,0.00015673,2]
[420313421,1775952641045,-451.0,0.00015663,2]
[420313422,1775952641054,-12303.01696537,0.00015673,2]
[420313445,1775952646237,-5195.1960073,0.00015673,2]
[420313517,1775953832157,-500.0,9.822e-05,2]
[420313519,1775953832182,-300.0,9.999e-05,2]
[420313520,1775953832201,-1200.0,9.999e-05,2]
[420313522,1775953832225,-3000.0,0.0001,2]
[420313891,1775953844855,-1082.232874,0.0001,2]
[420313892,1775953844868,-216.70025215,0.0001,2]
[420313894,1775953844877,-166.21969332,0.00010099,2]
[420313896,1775953844886,-1244.43151625,0.00010199,2]
[420313898,1775953844897,-300.0,0.00010199,2]
[420313901,1775953844915,-300.0,0.00010199,2]
[420313903,1775953844924,-300.0,0.00010199,2]
[420313905,1775953844933,-300.0,0.00010199,2]
[420313907,1775953844947,-300.0,0.00010199,2]
[420313909,1775953844960,-300.0,0.00010199,2]
[420313910,1775953844969,-300.0,0.00010199,2]
[420313912,1775953844978,-300.0,0.00010199,2]
[420313915,1775953844991,-300.0,0.00010199,2]
[420313916,1775953845004,-300.0,0.00010199,2]
[420313919,1775953845017,-300.0,0.00010199,2]
[420313921,1775953845032,-300.0,0.00010199,2]
[420313923,1775953845041,-300.0,0.00010199,2]
[420313925,1775953845050,-300.0,0.00010199,2]
[420313926,1775953845064,-300.0,0.00010199,2]
[420313929,1775953845075,-500.0,0.00010339,2]
[420313930,1775953845087,-600.0,0.00010402,2]
[420313932,1775953845096,-500.0,0.00010855,2]
[420313934,1775953845107,-420.0,0.00010999,2]
[420313936,1775953845119,-500.0,0.00011398,2]
[420313939,1775953845131,-720.0,0.00011442,2]
[420313941,1775953845140,-587.0,0.00012099,2]
[420313943,1775953845155,-196.13923812,0.00012099,2]
[420313945,1775953845167,-864.0,0.00012586,2]
[420313947,1775953845179,-523.0,0.00013309,2]
[420313949,1775953845189,-1000.0,0.00013699,2]
[420313951,1775953845207,-1000.0,0.00013845,2]
[420313953,1775953845217,-226.05878292,0.00014099,2]
[420313955,1775953845234,-500.0,0.00014771,2]
[420313957,1775953845247,-500.0,0.00014771,2]
[420313959,1775953845263,-500.0,0.00014771,2]
[420313961,1775953845277,-500.0,0.00014771,2]
[420313963,1775953845301,-500.0,0.00014771,2]
[420313965,1775953845314,-159.34324264,0.00014771,2]
[420313967,1775953845334,-500.0,0.00014771,2]
[420313969,1775953845368,-500.0,0.00014771,2]
[420313971,1775953845397,-309.89665465,0.00014771,2]
[420313973,1775953845475,-322.22533577,0.00014771,2]
[420313975,1775953845526,-500.0,0.00014771,2]
[420313977,1775953845559,-191.197534,0.00015068,2]
[420313979,1775953845588,-1000.0,0.0001523,2]
[420313981,1775953845603,-244.0,0.0001523,2]
[420313983,1775953845627,-1000.0,0.00015319,2]
[420313985,1775953845639,-1000.0,0.00015319,2]
[420313987,1775953845651,-1000.0,0.00015319,2]
[420313989,1775953845668,-1000.0,0.00015319,2]
[420313991,1775953845679,-1000.0,0.00015319,2]
[420313994,1775953845688,-1000.0,0.00015319,2]
[420313996,1775953845699,-1000.0,0.00015319,2]
[420313998,1775953845710,-160.0,0.00015379,2]
[420314000,1775953845719,-787.5274331,0.000154,2]
[420314003,1775953845730,-222.9673774,0.000154,2]
[420314026,1775953845944,-1845.00603599,0.000154,2]
[420314028,1775953845953,-938.99396401,0.000154,2]
[420314032,1775953845984,-341.50289787,0.000154,2]
[420314035,1775953846003,-701.75123084,0.000154,2]
[420314036,1775953846012,-523.47710529,0.000154,2]
[420314037,1775953846025,-1252.12137906,0.000154,2]
[420314038,1775953846034,-802.25,0.0001546,3]
[420314039,1775953846044,-517.75934337,0.00015468,2]
[420314040,1775953846054,-500.0,0.00015468,2]
[420314041,1775953846063,-500.0,0.00015468,2]
[420314042,1775953846072,-500.0,0.00015468,2]
[420314043,1775953846080,-500.0,0.00015468,2]
[420314044,1775953846090,-500.0,0.00015468,2]
[420314045,1775953846101,-500.0,0.00015468,2]
[420314046,1775953846112,-463.74603543,0.00015468,2]
[420314047,1775953846122,-500.0,0.00015468,2]
[420314048,1775953846135,-207.73321612,0.00015468,2]
[420314049,1775953846147,-1704.33794194,0.00015469,2]
[420314050,1775953846158,-500.0,0.00015469,2]
[420314051,1775953846171,-537.84176493,0.00015469,2]
[420314052,1775953846185,-500.0,0.00015469,2]
[420314053,1775953846196,-1704.33794194,0.00015469,2]
[420314054,1775953846208,-500.0,0.00015469,2]
[420314055,1775953846218,-1704.33794194,0.00015469,2]
[420314056,1775953846234,-1704.33794194,0.00015469,2]
[420314057,1775953846245,-1704.33794194,0.00015469,2]
[420314058,1775953846264,-500.0,0.00015469,2]
[420314059,1775953846279,-1704.33794194,0.00015469,2]
[420314060,1775953846291,-500.0,0.00015469,2]
[420314062,1775953846312,-500.0,0.00015469,2]
[420314064,1775953846325,-1704.33794194,0.00015469,2]
[420314066,1775953846339,-500.0,0.00015469,2]
[420314068,1775953846352,-1704.33794194,0.00015469,2]
[420314071,1775953846368,-1704.33794194,0.00015469,2]
[420314073,1775953846379,-500.0,0.00015469,2]
[420314075,1775953846396,-1704.33794194,0.00015469,2]
[420314077,1775953846414,-500.0,0.00015469,2]
[420314080,1775953846430,-1704.33794194,0.00015469,2]
[420314082,1775953846451,-1704.33794194,0.00015469,2]
[420314084,1775953846469,-500.0,0.00015469,2]
[420314086,1775953846483,-1704.33794194,0.00015469,2]
[420314088,1775953846503,-500.0,0.00015469,2]
[420314090,1775953846519,-500.0,0.00015469,2]
[420314093,1775953846532,-1738.42470078,0.00015469,2]
[420314095,1775953846550,-1738.42470078,0.00015469,2]
[420314097,1775953846567,-1738.42470078,0.00015469,2]
[420314099,1775953846590,-1738.42470078,0.00015469,2]
[420314102,1775953846607,-1738.42470078,0.00015469,2]
[420314104,1775953846619,-1738.42470078,0.00015469,2]
[420314106,1775953846636,-500.0,0.00015469,2]
[420314108,1775953846647,-500.0,0.00015469,2]
[420314111,1775953846659,-500.0,0.00015469,2]
[420314113,1775953846671,-500.0,0.00015469,2]
[420314115,1775953846684,-500.0,0.00015469,2]
[420314118,1775953846697,-500.0,0.00015469,2]
[420314121,1775953846714,-500.0,0.00015469,2]
[420314123,1775953846728,-500.0,0.00015469,2]
[420314125,1775953846745,-500.0,0.00015469,2]
[420314128,1775953846768,-1880.87894709,0.00015469,2]
[420314130,1775953846791,-1880.87894709,0.00015469,2]
[420314132,1775953846811,-1880.87894709,0.00015469,2]
[420314134,1775953846837,-1880.87894709,0.00015469,2]
[420314136,1775953846858,-500.0,0.00015469,2]
[420314139,1775953846877,-458.5834783,0.00015469,2]
[420314141,1775953846893,-500.0,0.00015469,2]